Cogmind - Beta 14 @@@ ROGUE MODE // 2024.09.18 @ 03:40:34 Player: Dull Result: Destroyed by H-66 Slayer with Heavy Assault Rifle Performance ------------- Evolutions (4) 2000 Regions Visited (12) 2400 Robots Destroyed (204) 1020 Value Destroyed (7163) 7163 Prototype IDs (41) 820 Alien Tech Used (0) 0 Bonus (1870) 1870 TOTAL SCORE: 15273 Bonus ------- High Alert Combat Kills 693 Follower Combat Kills 196 Entered Garrisons 200 Aligned with FarCom 300 Met Data Miner 300 Acquired ECA 300 Friendly Fire -119 Cogmind --------- Core Integrity 0/850 Matter 259/300 Energy 67/100 System Corruption 15% Temperature Cool (0) Movement Rolling (80) Location -6/Lower Caves Parts ------- > --- POWER (2) -------- (None) > --- PROPULSION (4) --- Wheel Combat Gravmag System > --- UTILITY (6) ------ Hacking Suite Makeshift System Shield > --- WEAPON (3) ------- Greatsword > --- INVENTORY (5) ---- Improved Coolant Injector Target Analyzer Peak State ------------ > --- POWER ------------ Reinforced Fission Core > --- PROPULSION ------- Armored Treads Armored Treads Medium Treads > --- UTILITY ---------- Huge Storage Unit Target Analyzer Layered Heavy Armor Plating Hardlight Generator Hacking Suite > --- WEAPON ----------- AWS/Autocannon > --- INVENTORY -------- Improved Deuterium Engine Improved Deuterium Engine Improved Deuterium Engine Light Angular Momentum Engine Neutrino Core Light Treads Advanced Treads Armored Huge Wheel Advanced Cooling System High-capacity Matter Pod Improved Weapon Cycler Hardened Light Armor Plating Hardened Medium Armor Plating Improved Medium Armor Plating Improved Focal Shield Hardlight Generator Hacking Suite Tractor Beam Minigun Gauss Rifle Mass Driver Enhanced Gauss Cannon Missile Launcher Heavy Mace [Rating: 77] Favorites ----------- Power Improved Deuterium Engine Engine Improved Deuterium Engine Power Core Reinforced Fission Core Propulsion Light Treads Treads Light Treads Leg Aluminum Leg Wheel Armored Huge Wheel Hover Unit Combat Gravmag System Utility Huge Storage Unit Device Kinecellerator Storage Huge Storage Unit Processor Target Analyzer Hackware Hacking Suite Protection Improved Light Armor Plating Weapon AWS/Autocannon Energy Gun Small Laser Energy Cannon Ion Cannon Ballistic Gun Light Assault Rifle Ballistic Cannon AWS/Autocannon Launcher Missile Launcher Impact Weapon Heavy Mace Slashing Weapon Greatsword Build | -11 -10 -10 -10 -9 -8 -8 -7 -7 -7 -6 -6 -6 ------- Run | Yrd Mat Min Exi Min Mat Gar Fac Low Dat Pro Fac Low Slots Evolved 8 | . . . . . 4 . 2 . . . 2 . Power 1 | . . . . . . . . . . . 1 . Propulsion 2 | . . . . . 1 . . . . . 1 . Utility 4 | . . . . . 2 . 2 . . . . . Weapon 1 | . . . . . 1 . . . . . . . Parts Attached 141 | 3 13 5 4 4 21 5 18 6 . 14 41 7 Power 19 | . 1 1 . 2 2 1 . . . 3 8 1 Engine 17 | . 1 1 . 2 2 . . . . 3 7 1 Core 2 | . . . . . . 1 . . . . 1 . Reactor . | . . . . . . . . . . . . . Propulsion 45 | 2 3 3 . 1 7 . 9 1 . . 16 3 Treads 29 | 2 3 1 . . 7 . 7 . . . 9 . Leg . | . . . . . . . . . . . . . Wheel 11 | . . 2 . 1 . . 2 1 . . 2 3 Hover 5 | . . . . . . . . . . . 5 . Flight . | . . . . . . . . . . . . . Utility 41 | 1 4 . 2 . 7 2 5 4 . 7 9 . Device 17 | 1 . . . . 2 . 2 2 . 4 6 . Storage 5 | . 2 . 1 . 1 . . . . . 1 . Processor 1 | . . . . . . . 1 . . . . . Hackware 4 | . . . . . 1 . 1 . . . 2 . Protection 14 | . 2 . 1 . 3 2 1 2 . 3 . . Artifact . | . . . . . . . . . . . . . Weapon 36 | . 5 1 2 1 5 2 4 1 . 4 8 3 Energy Gun 9 | . 3 . . 1 2 . . . . . 3 . Energy Cannon 2 | . . 1 1 . . . . . . . . . Ballistic Gun 14 | . 2 . 1 . . 1 1 1 . 2 4 2 Ballistic Cannon 7 | . . . . . 3 1 3 . . . . . Launcher 2 | . . . . . . . . . . 2 . . Special Weapon . | . . . . . . . . . . . . . Impact Weapon 1 | . . . . . . . . . . . 1 . Slashing Weapon 1 | . . . . . . . . . . . . 1 Piercing Weapon . | . . . . . . . . . . . . . Special Melee Weapon . | . . . . . . . . . . . . . Unidentified Prototypes 2 | . . . . . . . . 1 . . 1 . Parts Lost 59 | . 2 2 . 2 . . 5 2 . 9 29 8 Power 11 | . . 1 . 1 . . . . . 3 5 1 Propulsion 19 | . 1 1 . 1 . . 3 . . . 11 2 Utility 15 | . . . . . . . 1 2 . 3 7 2 Weapon 14 | . 1 . . . . . 1 . . 3 6 3 Highest Loss Streak 14 | . 1 1 . 1 . . 2 1 . 4 14 8 To Critical Strikes 2 | . . . . . . . . . . . . 2 Average Slot Usage (%) 85 | . 99 99 72 100 79 80 78 91 92 90 81 66 Engine 7 | . 14 13 14 14 9 8 . . . 6 11 6 Core 2 | . . . . . . . 7 7 7 . . . Treads 18 | . 27 21 28 18 25 27 20 . . . 9 . Wheel 4 | . . 5 . 9 . . 1 15 15 15 4 2 Device 6 | . 3 . . . 9 8 6 8 7 14 8 12 Storage 9 | . 14 14 14 14 9 9 7 7 7 7 8 . Processor 3 | . . . . . . . 7 7 7 7 5 . Hackware 6 | . . . . . 8 9 9 8 7 1 10 13 Protection 9 | . 10 14 14 14 8 9 7 12 15 13 1 . Energy Gun 2 | . 13 7 . 10 . . . . . . 5 . Ballistic Gun 5 | . 14 14 1 14 . . . 7 7 8 9 12 Ballistic Cannon 5 | . . . . . 8 9 8 15 15 3 . . Peak Build Rating 77 | 7 8 15 19 21 59 68 77 59 59 58 68 50 Average Rating 46 | 6 7 11 14 20 56 58 71 58 58 52 45 42 On Entrance 35 | 6 7 7 15 19 21 59 68 57 59 58 53 36 Naked Turns . | . . . . . . . . . . . . . Heaviest Build 186 | 15 48 53 55 55 159 181 186 135 135 135 135 28 Greatest Support 90 | 40 40 40 40 40 62 62 70 44 44 44 90 28 Greatest Overweight (x) 11 | . 1 4 1 5 11 2 4 3 3 3 11 1 Average Overweight (x) 2 | . . 2 1 4 3 1 2 2 3 2 2 . Largest Inventory Capacity 25 | 8 20 20 20 20 25 25 25 25 25 25 25 5 Average Capacity 22 | 8 14 20 20 20 24 25 25 25 25 25 24 5 Most Carried 25 | 6 12 19 20 20 25 25 25 25 24 23 25 5 Average Carried 19 | 5 8 13 19 19 22 22 23 24 23 17 18 2 Final Capacity 25 | 8 20 20 20 20 25 25 25 25 25 25 5 5 Final Carried 25 | 3 9 19 19 20 25 25 23 24 23 17 5 2 Class Distribution -------------------- 28% | Tank 26% | Skirmisher 24% | Mutant 5% | Hacker-Mutant 5% | Hacker-Skirmisher 4% | Scavenger-Mutant Dominant Class ---------------- Mutant | -10/Materials Mutant | -10/Mines Mutant | -10/Exiles Scavenger-Mutant | -9/Mines Skirmisher | -8/Materials Skirmisher | -8/Garrison Tank | -7/Factory Tank | -7/Lower Caves Tank | -7/Data Miner Tank | -6/Proximity Caves Hacker-Skirmisher | -6/Factory Hacker-Mutant | -6/Lower Caves Resources | -11 -10 -10 -10 -9 -8 -8 -7 -7 -7 -6 -6 -6 ----------- Run | Yrd Mat Min Exi Min Mat Gar Fac Low Dat Pro Fac Low Matter Collected 4682 | 240 726 74 34 126 222 49 1036 546 . 777 756 96 Remotely 224 | . . . . . . . . 224 . . . . Salvage Created 6013 | 129 897 144 . 169 833 516 1404 303 . 578 1000 40 Parts 305 | 4 51 7 . 20 53 28 73 16 . 19 32 2 Haulers Intercepted 4 | . 1 . . . . . 3 . . . . . Recyclers Shooed 7 | . 1 . . 1 . . 2 . . . 3 . Parts Field Recycled . | . . . . . . . . . . . . . Retrieved Matter . | . . . . . . . . . . . . . Parts Self-Destructed 34 | . . . . . . . . 16 . 18 . . Prevented . | . . . . . . . . . . . . . Kills | -11 -10 -10 -10 -9 -8 -8 -7 -7 -7 -6 -6 -6 ------- Run | Yrd Mat Min Exi Min Mat Gar Fac Low Dat Pro Fac Low Combat Hostiles Destroyed 169 | . 18 6 . 12 29 24 35 14 . 15 15 1 Melee 1 | . . . . . . . . . . . . 1 Guns 50 | . 18 4 . 7 . . . 5 . 4 12 . Cannons 102 | . . 2 . 1 29 24 32 9 . 5 . . AOE 14 | . . . . 4 . . 3 . . 6 1 . Classes Destroyed 18 | 2 5 . . . 5 . 5 . . 1 . . Worker 5 | . 2 . . . . . 3 . . . . . Builder 3 | . . . . . . . 1 . . . 2 . Tunneler 2 | 2 . . . . . . . . . . . . Hauler 4 | . 1 . . . . . 3 . . . . . Recycler 9 | 1 1 1 . . . . 3 . . . 3 . Mechanic 1 | . . . . . . . 1 . . . . . Operator 3 | . . . . . 2 . 1 . . . . . Watcher 8 | . 3 . . . 5 . . . . . . . Swarmer 57 | . 3 6 . 11 7 10 4 9 . 4 3 . Grunt 61 | . 15 . . 1 7 11 16 3 . 5 3 . Brawler 2 | . . . . . . . 1 1 . . . . Duelist 4 | . . . . . . . 2 . . 2 . . Sentry 19 | . . . . . 9 1 3 1 . 1 4 . Specialist 2 | . . . . . 2 . . . . . . . Hunter 12 | . . . . . 3 2 1 . . 3 2 1 Programmer 11 | . . . . . . . 8 . . . 3 . Heavy 1 | . . . . . 1 . . . . . . . Tinkerer 1 | . . . . . . . . . . 1 . . Best Kill Streak 11 | 2 7 2 . 4 5 11 7 4 . 5 4 1 Combat Bots Only 11 | . 5 2 . 4 4 11 4 4 . 5 4 1 Max Kills in Single Turn 6 | 1 2 1 . 4 1 1 6 2 . 4 2 1 Gunslinging . | . . . . . . . . . . . . . Exploded 4 | . . . . 4 . . 3 . . 4 1 . Melee 1 | . . . . . . . . . . . . 1 Uniques/NPCs Destroyed . | . . . . . . . . . . . . . Combat | -11 -10 -10 -10 -9 -8 -8 -7 -7 -7 -6 -6 -6 -------- Run | Yrd Mat Min Exi Min Mat Gar Fac Low Dat Pro Fac Low Hostile Shots Fired 1174 | . 79 22 . 43 102 49 239 59 . 93 446 42 Missed 353 | . 22 2 . 9 34 16 73 15 . 27 148 7 Damage Taken 12134 | . 700 222 . 368 908 446 2625 569 . 1211 4413 672 Core 1544 | . 120 6 . 33 37 15 315 48 . 111 776 83 Absorbed by Shields 330 | . . . . . . 2 136 . . . 192 . Redirected to Shielding 15 | . 14 1 . . . . . . . . . . Ignored by Resistances 168 | . . . . . . . . . . 92 76 . Regen/Repaired (Parts) 64 | . 64 . . . . . . . . . . . Core Remaining (%) 64 | 100 . . . 36 . 90 . . . 32 . . Volleys Fired 321 | 10 77 16 . 23 7 . 47 24 . 44 65 8 Largest 3 | 2 2 2 . 2 2 . 3 3 . 3 3 2 Hottest 240 | 70 70 80 . 95 95 . 162 133 . 130 240 45 Shots Fired 841 | 20 154 32 . 41 91 43 151 73 . 95 130 11 Gun 455 | 20 154 27 . 33 10 . 9 24 . 48 119 11 Cannon 367 | . . 5 . 8 81 43 142 49 . 39 . . Launcher 19 | . . . . . . . . . . 8 11 . Special . | . . . . . . . . . . . . . Kinetic 630 | 10 77 16 . 24 84 43 151 73 . 87 54 11 Thermal 192 | 10 77 16 . 17 7 . . . . . 65 . Explosive 19 | . . . . . . . . . . 8 11 . Electromagnetic . | . . . . . . . . . . . . . Robot Hit Streak 25 | 5 12 7 . 5 25 20 12 8 . 13 13 5 Robot Miss Streak 12 | 2 6 2 . 3 3 1 7 12 . 3 6 2 Penetration Max 1 | . . . . . . . 1 . . 1 1 . Secondary Targets 5 | . 1 1 . 1 . . . . . . 2 . Max Gunslinging Chain 1 | . 1 1 . 1 . . . . . . 1 . Autonomous 174 | . . . . . 81 43 50 . . . . . Shots Hit Robots 561 | 14 95 18 . 22 73 38 102 40 . 55 96 8 Core Hits 297 | 4 45 10 . 14 28 15 51 27 . 33 67 3 Critical Kills 4 | . . . . . . . . . . 1 3 . Critical Parts Destroyed 3 | . . . . . . . . . . 1 2 . Critical Strikes 50 | . . . . . 8 10 16 3 . 5 8 . Burn 3 | . . . . . . . . . . . 3 . Destroy 7 | . . . . . . . . . . 2 5 . Blast 40 | . . . . . 8 10 16 3 . 3 . . Melee Attacks 1 | . . . . . . . . . . . . 1 Impact . | . . . . . . . . . . . . . Slashing 1 | . . . . . . . . . . . . 1 Piercing . | . . . . . . . . . . . . . Sneak Attacks . | . . . . . . . . . . . . . Combat Hostiles . | . . . . . . . . . . . . . Follow-up Attacks . | . . . . . . . . . . . . . Damage Inflicted 23890 | 167 1177 231 . 513 6440 3527 6261 1020 . 1793 2601 160 Guns 5042 | 167 1171 153 . 220 98 . 108 256 . 747 2012 110 Cannons 16821 | . . 78 . 94 6342 3496 5489 764 . 558 . . Explosions 1940 | . . . . 199 . . 664 . . 488 589 . Melee 50 | . . . . . . . . . . . . 50 Ramming 37 | . 6 . . . . 31 . . . . . . Kinetic 19658 | 93 606 93 . 107 6358 3496 5597 1020 . 1305 873 110 Thermal 3068 | 74 565 138 . 406 82 . 664 . . . 1139 . Explosive 1077 | . . . . . . . . . . 488 589 . Electromagnetic . | . . . . . . . . . . . . . Impact . | . . . . . . . . . . . . . Slashing 50 | . . . . . . . . . . . . 50 Piercing . | . . . . . . . . . . . . . Highest Corruption 15 | . 1 1 1 1 2 2 2 2 2 2 15 15 Average Corruption 2 | . 1 1 1 1 1 2 1 2 2 2 7 15 Corruption Purged . | . . . . . . . . . . . . . Corruption Blocked . | . . . . . . . . . . . . . Effects 205 | . 12 7 5 9 12 24 27 24 2 21 50 12 Message Errors 55 | . 4 . 1 1 5 8 9 4 . 7 14 2 Matter Fused 57 | . 3 1 2 5 2 3 6 8 1 5 14 7 Heat Flow Errors 19 | . . 1 . 2 . 6 2 1 . 2 5 . Energy Discharges 23 | . 1 3 1 . 1 1 6 3 . 2 4 1 Parts Rejected 3 | . . . . . . . . . . . 2 1 Parts Fused 4 | . . . . . 1 1 1 . . . 1 . Data Loss (minor) 18 | . 2 1 1 . . 2 1 5 1 2 3 . Data Loss (major) 9 | . 2 . . . 2 1 1 . . 2 1 . Misfires 7 | . . . . 1 . . . 1 . . 5 . Alerts 7 | . . 1 . . 1 2 1 2 . . . . Weapon Failures 3 | . . . . . . . . . . 1 1 1 Overload Shots . | . . . . . . . . . . . . . Overflow Damage 2899 | . . . . 23 1384 653 768 44 . 27 . . Projectiles 2749 | . . . . . 1384 653 650 44 . 18 . . Explosions 150 | . . . . 23 . . 118 . . 9 . . Melee . | . . . . . . . . . . . . . Knockbacks 60 | . . . . . 19 9 28 2 . 2 . . Impact . | . . . . . . . . . . . . . Kinetic 54 | . . . . . 17 9 24 2 . 2 . . Secondary 6 | . . . . . 2 . 4 . . . . . Self-Inflicted Damage 520 | . . . . 96 . 31 376 . . 17 . . Shots 8 | . . . . 2 . . 5 . . 1 . . Rammed 1 | . 1 . . . . . . . . . . . Targets Rammed 1 | . 1 . . . . . . . . . . . Kicked . | . . . . . . . . . . . . . Crushed . | . . . . . . . . . . . . . Highest Temperature 524 | 45 144 259 . 336 90 230 447 91 . 124 524 . Average Temperature 93 | 20 33 50 . 96 40 97 137 25 . 26 163 . Received Heat Transfer 2162 | . 321 . . 9 81 171 876 69 . 225 410 . Effects 18 | . . . . . . . 9 . . . 9 . Shutdowns 4 | . . . . . . . 2 . . . 2 . Energy Bleed 3 | . . . . . . . . . . . 3 . Interference 9 | . . . . . . . 6 . . . 3 . Matter Decay 1 | . . . . . . . 1 . . . . . Damage (minor) 1 | . . . . . . . . . . . 1 . Siege Activations . | . . . . . . . . . . . . . Robots Corrupted 1 | . . . . . . . 1 . . . . . Combat Hostiles . | . . . . . . . . . . . . . Parts Fried . | . . . . . . . . . . . . . Impact Corruptions 1 | . . . . . . . 1 . . . . . Robots Melted 3 | . . . . . . . . . . . 3 . Combat Hostiles 2 | . . . . . . . . . . . 2 . Parts Melted 16 | . 1 . . . . . 1 . . . 14 . Heat Transferred 5928 | 222 1439 236 . 533 148 . 500 . . . 2850 . Parts Sabotaged 2 | . . . . . . . . . . 2 . . Parts Stolen . | . . . . . . . . . . . . . Parts Stripped . | . . . . . . . . . . . . . Power Chain Reactions . | . . . . . . . . . . . . . Alert | -11 -10 -10 -10 -9 -8 -8 -7 -7 -7 -6 -6 -6 ------- Run | Yrd Mat Min Exi Min Mat Gar Fac Low Dat Pro Fac Low Peak Influence 1284 | 15 284 101 . 202 355 1019 1284 . . . 402 . Initial 534 | . 9 21 . . 51 31 534 . . . 70 . Average 320 | 9 96 29 . 92 123 633 620 . . . 229 . Maximum Alert Level 4 | . 1 . . 1 1 3 4 . . . 2 . Low Security (%) 49 | 100 92 100 . 85 81 13 . . . . 27 . Level 1 14 | . 7 . . 14 18 1 6 . . . 71 . Level 2 23 | . . . . . . 38 70 . . . . . Level 3 8 | . . . . . . 46 6 . . . . . Level 4 3 | . . . . . . . 15 . . . . . Level 5 . | . . . . . . . . . . . . . High Security . | . . . . . . . . . . . . . Max Security . | . . . . . . . . . . . . . Squads Dispatched 37 | . 5 1 . 1 6 . 11 . . 1 12 . Investigation 9 | . 4 1 . 1 1 . 1 . . . 1 . Extermination 9 | . . . . . . . 7 . . . 2 . Reinforcement 3 | . 1 . . . 2 . . . . . . . Assault 4 | . . . . . . . 3 . . 1 . . Garrison 12 | . . . . . 3 . . . . . 9 . Intercept . | . . . . . . . . . . . . . Searches Triggered . | . . . . . . . . . . . . . Data Miner Redirects 2 | . . . . . . . . . . . 2 . Construction Impeded . | . . . . . . . . . . . . . Haulers Reinforced . | . . . . . . . . . . . . . Active Scanning Responses . | . . . . . . . . . . . . . Cargo Convoy Interrupts 1 | . . . . . . . . . . . 1 . Stealth | -11 -10 -10 -10 -9 -8 -8 -7 -7 -7 -6 -6 -6 --------- Run | Yrd Mat Min Exi Min Mat Gar Fac Low Dat Pro Fac Low Distress Signals 4 | . 2 1 . . 1 . . . . . . . Communications Jammed . | . . . . . . . . . . . . . Distress Signals . | . . . . . . . . . . . . . Times Spotted 234 | . 28 10 . 16 31 26 48 14 . 18 41 2 Peak Tracking Total 11 | . 3 3 . 4 3 7 6 4 . 6 11 2 Tactical Retreats 18 | . 2 2 . 1 . 3 5 . . 2 3 . Traps | -11 -10 -10 -10 -9 -8 -8 -7 -7 -7 -6 -6 -6 ------- Run | Yrd Mat Min Exi Min Mat Gar Fac Low Dat Pro Fac Low Traps Triggered 17 | . 6 . . . 2 5 2 . . . 2 . Indirectly . | . . . . . . . . . . . . . Trap Hack Attempts . | . . . . . . . . . . . . . Triggered . | . . . . . . . . . . . . . Disarmed 6 | . . . . . 6 . . . . . . . Reprogrammed 6 | . . . . . 6 . . . . . . . Reused . | . . . . . . . . . . . . . Traps Extracted . | . . . . . . . . . . . . . Installed . | . . . . . . . . . . . . . Triggered 1 | . . . . . . . . 1 . . . . Machines | -11 -10 -10 -10 -9 -8 -8 -7 -7 -7 -6 -6 -6 ---------- Run | Yrd Mat Min Exi Min Mat Gar Fac Low Dat Pro Fac Low Machines Disabled 35 | . . . . 6 2 . 21 . . 3 3 . Max in Single Turn 16 | . . . . 6 1 . 16 . . 2 1 . Garrison Access 1 | . . . . . . . 1 . . . . . Machines Repaired . | . . . . . . . . . . . . . Machines Dismantled . | . . . . . . . . . . . . . Machines Sabotaged . | . . . . . . . . . . . . . Overloaded Fab Kills . | . . . . . . . . . . . . . Hacking | -11 -10 -10 -10 -9 -8 -8 -7 -7 -7 -6 -6 -6 --------- Run | Yrd Mat Min Exi Min Mat Gar Fac Low Dat Pro Fac Low Machines Accessed 42 | . 10 1 2 1 13 2 8 . 4 . 1 . Terminals 25 | . 7 . . 1 10 2 5 . . . . . Fabricators 1 | . . . . . . . 1 . . . . . Repair Stations 1 | . 1 . . . . . . . . . . . Recycling Units 4 | . 2 . . . 2 . . . . . . . Scanalyzers 1 | . . . . . . . 1 . . . . . Garrison Access 3 | . . . . . 1 . 1 . . . 1 . Total Hacks 149 | . 40 1 2 4 51 3 16 . 30 . 2 . Successful 94 | . 19 1 2 2 29 1 10 . 30 . . . Failed 54 | . 20 . . 2 22 2 6 . . . 2 . Catastrophic 6 | . 1 . . . . 1 3 . . . 1 . Database Lockouts 1 | . 1 . . . . . . . . . . . Manual 81 | . 31 . 1 4 33 . 9 . . 3 . . Terminals 94 | . 32 . . 4 44 3 11 . . . . . Fabricators 2 | . . . . . . . 2 . . . . . Repair Stations 2 | . 2 . . . . . . . . . . . Recycling Units 12 | . 6 . . . 6 . . . . . . . Scanalyzers 2 | . . . . . . . 2 . . . . . Garrison Access 4 | . . . . . 1 . 1 . . . 2 . Terminal Hacks 66 | . 10 1 2 2 17 1 3 . 30 . . . Record 12 | . . . 1 . . . . . 11 . . . Part Schematic 11 | . . . . . . . . . 11 . . . Robot Schematic 5 | . . . . . . . . . 5 . . . Robot Analysis 12 | . 7 . . 2 2 . 1 . . . . . Prototype ID Bank 7 | . . . . . 4 . . . 3 . . . Open Door 1 | . . 1 . . . . . . . . . . Branch Access Points 1 | . . . . . . . 1 . . . . . Scanalyzer Index 1 | . . . . . 1 . . . . . . . Alert Level 6 | . 1 . . . 4 . 1 . . . . . Unreport Threat 3 | . . . . . 3 . . . . . . . Locate Traps 1 | . . . . . 1 . . . . . . . Disarm Traps 1 | . . . . . 1 . . . . . . . Reprogram Traps 1 | . . . . . 1 . . . . . . . Security Status 1 | . 1 . . . . . . . . . . . Zone Layout 1 | . 1 . . . . . . . . . . . Garrison Registry 1 | . . . . . . 1 . . . . . . Derelict Proto ID Bank 1 | . . . 1 . . . . . . . . . Fabricator Hacks . | . . . . . . . . . . . . . Repair Station Hacks 2 | . 2 . . . . . . . . . . . Scan Component 1 | . 1 . . . . . . . . . . . Repair 1 | . 1 . . . . . . . . . . . Recycling Unit Hacks . | . . . . . . . . . . . . . Scanalyzer 2 | . . . . . . . 2 . . . . . Insert Component 1 | . . . . . . . 1 . . . . . Analyze 1 | . . . . . . . 1 . . . . . Garrison Access Hacks 2 | . . . . . 1 . 1 . . . . . Unlock Access 1 | . . . . . 1 . . . . . . . Seal Access 1 | . . . . . . . 1 . . . . . Unauthorized Hacks 22 | . 7 . . . 11 . 4 . . . . . Terminals 19 | . 5 . . . 10 . 4 . . . . . Botnet 19 | . 5 . . . 10 . 4 . . . . . Fabricators . | . . . . . . . . . . . . . Repair Stations . | . . . . . . . . . . . . . Recycling Units 3 | . 2 . . . 1 . . . . . . . Monitor 1 | . 1 . . . . . . . . . . . Mask 2 | . 1 . . . 1 . . . . . . . Scanalyzers . | . . . . . . . . . . . . . Garrison Access . | . . . . . . . . . . . . . Data Cores Recovered 1 | . . . . . 1 . . . . . . . Used . | . . . . . . . . . . . . . Hacking Detections 30 | . 10 . . 1 10 1 7 . . . 1 . Full Trace Events 9 | . 4 . . 1 1 1 1 . . . 1 . Feedback Events . | . . . . . . . . . . . . . Feedback Blocked . | . . . . . . . . . . . . . Robot Schematics Acquired 5 | . . . . . . . . . 5 . . . Robots Built . | . . . . . . . . . . . . . Authchips . | . . . . . . . . . . . . . Time . | . . . . . . . . . . . . . Total Robot Build Rating . | . . . . . . . . . . . . . Part Schematics Acquired 12 | . . . . . . . 1 . 11 . . . Parts Built . | . . . . . . . . . . . . . Authchips . | . . . . . . . . . . . . . Time . | . . . . . . . . . . . . . Total Part Build Rating . | . . . . . . . . . . . . . Parts Repaired 1 | . 1 . . . . . . . . . . . Time 26 | . 26 . . . . . . . . . . . Parts Recycled . | . . . . . . . . . . . . . Recycled Matter . | . . . . . . . . . . . . . Retrieved Matter . | . . . . . . . . . . . . . Retrieved Components . | . . . . . . . . . . . . . Parts Scanalyzed 1 | . . . . . . . 1 . . . . . Part Schematics Acquired 1 | . . . . . . . 1 . . . . . Parts Damaged . | . . . . . . . . . . . . . Bothacking | -11 -10 -10 -10 -9 -8 -8 -7 -7 -7 -6 -6 -6 ------------ Run | Yrd Mat Min Exi Min Mat Gar Fac Low Dat Pro Fac Low Used RIF Installer . | . . . . . . . . . . . . . Robots Hacked . | . . . . . . . . . . . . . Non-combat . | . . . . . . . . . . . . . Combat . | . . . . . . . . . . . . . Robot Hacks Applied . | . . . . . . . . . . . . . Relay Couplers Released . | . . . . . . . . . . . . . Fabnet Peak Effective % . | . . . . . . . . . . . . . Robots Rewired 1 | . . . . . . . . . . 1 . . Allies Hacked . | . . . . . . . . . . . . . Hacks Repelled . | . . . . . . . . . . . . . Allies | -11 -10 -10 -10 -9 -8 -8 -7 -7 -7 -6 -6 -6 -------- Run | Yrd Mat Min Exi Min Mat Gar Fac Low Dat Pro Fac Low Total Allies 4 | . . . . 2 . . . . . 2 . . Largest Group 2 | . . . . 2 . . . . . 1 1 . Highest-Rated Group 96 | . . . . 47 . . . . . 96 96 . Highest-Rated Ally 96 | . . . . 31 . . . . . 96 96 . Total Orders . | . . . . . . . . . . . . . Ally Attacks 37 | . . . . 12 . . . . . 3 22 . Total Damage 1132 | . . . . 125 . . . . . 76 931 . Kills 7 | . . . . 3 . . . . . . 4 . Allies Corrupted . | . . . . . . . . . . . . . Allies Melted . | . . . . . . . . . . . . . Intel | -11 -10 -10 -10 -9 -8 -8 -7 -7 -7 -6 -6 -6 ------- Run | Yrd Mat Min Exi Min Mat Gar Fac Low Dat Pro Fac Low Robot Analysis Total 12 | . 7 . . 2 2 . 1 . . . . . Derelict Logs Recovered 7 | . . 2 . 1 . . . 1 . 1 . 2 Drone Launches . | . . . . . . . . . . . . . Drone Recoveries . | . . . . . . . . . . . . . Exploration | -11 -10 -10 -10 -9 -8 -8 -7 -7 -7 -6 -6 -6 ------------- Run | Yrd Mat Min Exi Min Mat Gar Fac Low Dat Pro Fac Low Turns Passed 20327 | 77 1725 1476 1046 1124 3358 2238 3964 1829 117 1579 1539 255 Spaces Moved 8555 | 21 762 656 424 538 1050 694 1300 1229 81 1032 490 278 Core . | . . . . . . . . . . . . . Treads 4489 | 1 762 334 424 124 917 694 1009 . . . 224 . Legs 20 | 20 . . . . . . . . . . . . Wheels 3761 | . . 322 . 414 133 . 291 1229 81 1032 242 17 Hover 285 | . . . . . . . . . . . 24 261 Flight . | . . . . . . . . . . . . . Fastest Speed 71 | 120 160 140 245 140 230 238 135 130 145 130 71 77 Average Speed 212 | 121 171 193 245 177 307 317 275 141 145 130 240 79 Slowest Speed 640 | 160 240 320 245 330 323 318 406 145 145 145 640 155 Overloaded Moves . | . . . . . . . . . . . . . Propulsion Burnouts . | . . . . . . . . . . . . . Robots Hopped . | . . . . . . . . . . . . . Cave-ins Triggered . | . . . . . . . . . . . . . Exploration Rate (%) 66 | 3 99 98 70 93 95 65 28 99 69 97 10 32 Regions Visited 12 Branch Regions 7 Pre-discovered Areas 5 | . . . 1 2 . . . 1 1 . . . Known Exits Taken 2 | . . . . . 1 . 1 . . . . . Unknown Exits Taken 9 | 1 1 1 1 1 . . . 1 1 1 1 . Scrap Searched 9 | . . 1 . 1 . . . 2 . 3 . 2 Spaces Dug 7 | . . . . . . . . . . . 7 . Terrain Destroyed 257 | . . . . 28 13 6 96 19 . 61 34 . Melee . | . . . . . . . . . . . . . Projectile 83 | . . . . 1 13 6 32 19 . 10 2 . AOE 174 | . . . . 27 . . 64 . . 51 32 . Terrain Rammed 1 | . . . . . . 1 . . . . . . Walls Destroyed 1 | . . . . . . 1 . . . . . . Machines Disabled . | . . . . . . . . . . . . . Actions | -11 -10 -10 -10 -9 -8 -8 -7 -7 -7 -6 -6 -6 --------- Run | Yrd Mat Min Exi Min Mat Gar Fac Low Dat Pro Fac Low Total 10092 | 52 1028 832 436 671 1183 732 1589 1265 81 1194 730 299 Wait 860 | 16 157 142 . 104 54 . 201 . . 87 97 2 Move 8544 | 20 761 655 423 537 1050 693 1299 1228 80 1031 489 278 Hop . | . . . . . . . . . . . . . Pick Up 108 | . 11 12 2 2 22 9 14 5 . 4 25 2 Fast Attach 31 | 1 4 1 1 1 5 3 . . . 2 11 2 Attach 66 | . 2 2 1 1 4 1 11 2 . 12 25 5 Detach 10 | . . 1 1 . 3 . . . . 2 3 . Swap 44 | 2 7 2 2 2 12 1 7 4 . . 5 . Drop 81 | 3 8 1 6 1 26 14 8 2 1 . 10 1 Fire 321 | 10 77 16 . 23 7 . 47 24 . 44 65 8 Melee 1 | . . . . . . . . . . . . 1 Ram 1 | . . . . . . 1 . . . . . . Kick . | . . . . . . . . . . . . . Crush 1 | . 1 . . . . . . . . . . . Escape Stasis 12 | . . . . . . 10 2 . . . . . Rewire 12 | . . . . . . . . . . 12 . . Trap . | . . . . . . . . . . . . . Miscellaneous . | . . . . . . . . . . . . . Route ------- -11/Scrapyard -10/Materials (discovered 4 exits: [*Mat x3] / *Min) -10/Mines (discovered 3 exits: [*Mat x2] / *Exi) -10/Exiles (discovered 2 exits: *Min x2) -9/Mines (discovered 2 exits: *Mat x2) -8/Materials (discovered 4 exits: *Fac x3 / Gar) -8/Garrison (discovered 3 exits: *Fac x3) -7/Factory (discovered 3 exits: Sto / *Low x2) -7/Lower Caves (discovered 2 exits: [*Low] / *Dat) -7/Data Miner -6/Proximity Caves -6/Factory (discovered 3 exits: Fac x2 / [*Low]) -6/Lower Caves (discovered 1 exit: Low) History --------- Turn | Location | Event 1 | -11/Scrapyard | Discovered new exit (range 3) 78 | -11/Scrapyard | Entered Materials 307 | -10/Materials | Build established: Mutant 533 | -10/Materials | Repaired Lgt. Treads 806 | -10/Materials | Discovered new exit (range 16) 1202 | -10/Materials | Discovered new exit (range 16) 1294 | -10/Materials | Central database locked down 1513 | -10/Materials | Discovered new exit (range 8) 1671 | -10/Materials | Discovered new exit (range 15) 1803 | -10/Materials | Entered Mines 1896 | -10/Mines | Learned Materials terminal intel 1951 | -10/Mines | Core integrity fell below 50% 1992 | -10/Mines | Discovered new exit (range 10) 2016 | -10/Mines | Learned Materials emergency access door positions 2076 | -10/Mines | Found a damaged Exp. Sensor Array with a note attached 2079 | -10/Mines | Assembled infested the area 2079 | -10/Mines | Found Prototype Device 2084 | -10/Mines | Assisted by a Guerilla fighting off Assembled 2097 | -10/Mines | Deemed a non-threat by the Exiles lab entrance 2098 | -10/Mines | Discovered new exit (range 5) 2504 | -10/Mines | Met a Derelict shopkeep closing up shop 3011 | -10/Mines | Discovered new exit (range 2) 3279 | -10/Mines | Entered Exiles 3344 | -10/Exiles | Met 8R-AWN 3383 | -10/Exiles | Met EX-HEX 3452 | -10/Exiles | Met EX-BIN 3484 | -10/Exiles | Aligned with FarCom system 3486 | -10/Exiles | Given EX-Vault access code 3543 | -10/Exiles | Opened EX-Vault 3558 | -10/Exiles | Found AWS/Autocannon 3610 | -10/Exiles | Warned to stay clear of 0b10 Research branches 3676 | -10/Exiles | Met EX-DEC 3689 | -10/Exiles | Learned location of Zion (-6) 3972 | -10/Exiles | Discovered new exit (range 14) 4290 | -10/Exiles | Discovered new exit (range 15) 4325 | -10/Exiles | Left Exiles lab with AWS/Autocannon 4325 | -10/Exiles | Entered Mines 4345 | -9/Mines | Discovered new exit (range 7) 4504 | -9/Mines | Discovered new exit (range 16) 5004 | -9/Mines | Build established: Scavenger-Mutant 5200 | -9/Mines | Learned location of Storage (-7) 5449 | -9/Mines | Entered Materials 5449 | -8/Materials | Evolved 4 slots: Propulsion x1, Utility x2, Weapon x1 5451 | -8/Materials | Loaded intel: 12 terminal locations 6042 | -8/Materials | Build established: Skirmisher 6187 | -8/Materials | Garrison activated, responded to threat 6981 | -8/Materials | Discovered new exit (range 8) 8035 | -8/Materials | Discovered new exit (range 15) 8665 | -8/Materials | Discovered new exit (range 10) 8807 | -8/Materials | Identified exit to Garrison 8807 | -8/Materials | Entered Garrison 8837 | -8/Garrison | Triggered checkpoint 9167 | -8/Garrison | Destroyed 11 combat bots 9213 | -8/Garrison | Triggered checkpoint 9235 | -8/Garrison | Triggered checkpoint 9461 | -8/Garrison | Discovered new exit (range 10) 9527 | -8/Garrison | Triggered checkpoint 10050 | -8/Garrison | Discovered new exit (range 9) 10087 | -8/Garrison | Triggered checkpoint 10120 | -8/Garrison | Discovered new exit (range 14) 10120 | -8/Garrison | Discovered new exit (range 57) 10120 | -8/Garrison | Discovered new exit (range 46) 11045 | -8/Garrison | Entered Factory 11045 | -7/Factory | Evolved 2 slots: Utility x2 11345 | -7/Factory | Build established: Tank 13845 | -7/Factory | First assault squad dispatched 14002 | -7/Factory | AWS/Autocannon suddenly broke down 14289 | -7/Factory | Build established: Hacker-Mutant 14493 | -7/Factory | Identified exit to Storage 14493 | -7/Factory | Identified exit to Lower Caves 14963 | -7/Factory | Build established: Hacker-Skirmisher 15009 | -7/Factory | Entered Lower Caves 15059 | -7/Lower Caves | Met a Warlord Commander 15060 | -7/Lower Caves | Learned location of Warlord (-4) 15061 | -7/Lower Caves | Warlord Commander delivered Encrypted Comm Array 15063 | -7/Lower Caves | Found Encrypted Comm Array 15457 | -7/Lower Caves | A Derelict revealed a hidden shortcut to meet someone special 15581 | -7/Lower Caves | Discovered new exit (range 3) 15584 | -7/Lower Caves | Attracted the attention of an 0b10 checkpoint 15589 | -7/Lower Caves | Build established: Gunner 15657 | -7/Lower Caves | Learned location of 1 exit from Factory 15819 | -7/Lower Caves | Core integrity fell below 50% 15907 | -7/Lower Caves | Build established: Tank 16838 | -7/Lower Caves | Entered Data Miner 16838 | -7/Data Miner | Discovered new exit (range 6) 16866 | -7/Data Miner | Met Data Miner 16895 | -7/Data Miner | Learned location of Section 7 (-2) 16895 | -7/Data Miner | Acquired the access code to Warlord's prototype stash 16920 | -7/Data Miner | Received God Mode back door access code from Data Miner 16955 | -7/Data Miner | Entered Proximity Caves 17205 | -6/Proximity Caves | Attracted the attention of an 0b10 outpost 17368 | -6/Proximity Caves | Lost 4 parts (1p2u1w) 17709 | -6/Proximity Caves | Escorted by Enhanced Grunt 18156 | -6/Proximity Caves | Learned 12 Factory zone layouts 18179 | -6/Proximity Caves | Discovered new exit (range 14) 18534 | -6/Proximity Caves | Entered Factory 18534 | -6/Factory | Accompanied by 1 ally 18534 | -6/Factory | Evolved 2 slots: Power x1, Propulsion x1 18535 | -6/Factory | Identified exit to Factory 18730 | -6/Factory | Lost 3 parts (1u2w) 18821 | -6/Factory | Lost 3 parts (1n2u) 19037 | -6/Factory | Garrison activated, responded to threat 19097 | -6/Factory | Lost 5 parts (2p1n1u1w) 19640 | -6/Factory | Discovered new exit (range 8) 19856 | -6/Factory | Build established: Hacker-Skirmisher 20014 | -6/Factory | Cargo convoy interrupted 20036 | -6/Factory | System corruption reached 10% 20040 | -6/Factory | Incoming assault squad redirected 20047 | -6/Factory | Core integrity fell below 50% 20057 | -6/Factory | Incoming assault squad redirected 20059 | -6/Factory | Core integrity fell below 20% 20073 | -6/Factory | Entered Lower Caves 20086 | -6/Lower Caves | Lost 14 parts (3p6n3u2w) 20114 | -6/Lower Caves | Identified exit to Lower Caves 20248 | -6/Lower Caves | Learned Factory trap positions 20261 | -6/Lower Caves | Build established: Hacker-Mutant 20328 | -6/Lower Caves | Destroyed by H-66 Slayer with Heavy Assault Rifle Last Messages --------------- 20311_ Slug penetrates Wall. 20314_ Penetrated by Slug. 20314_ Critical hit (Destroy). 20314_ Hvy. Machine Gun destroyed. 20317_ Cloaking Device destroyed. 20317_ Penetrated by Slug. 20318_ System corrupted: Energy discharge (-75). 20320_ Penetrated by Slug. 20320_ Angular Momentum Engine destroyed. 20320_ Penetrated by Slug. 20320_ Critical hit (Destroy). 20320_ Imp. Heavy Machine Gun destroyed. 20320_ Hvy. Mace destroyed. 20321_ Acquired Wheel. 20324_ Penetrated by Slug. 20324_ Slug penetrates Wall. 20324_ Penetrated by Slug. 20324_ ECM Suite destroyed. 20326_ H-66 Slayer destroyed. 20328_ Penetrated by Slug. Map ----- +----------------------------------------------------+ | ?????????????????????????????????????????????????? | | ??????????????????????????? ????????????????????? | | ????????????????????????? ????????????????????? | | ?????????????????????? ????????????????????? | | ???????????????????? ????????????????????? | | ????????????????????? ????????????????????? | | ?????????????????????? ????????????????????? | | ?????????????????? ? ###?##???####???????? | | ??????????????????# ?? ## ???## ##??????? | | ????????????####?## ??? ??## ##????? | | ???????????? ## ???? ???# ##???? | | ???????????? ??? ?????# ##?? | | ????????????? ???? ?????#### ### | | ?????????????? ????? ????????# # | | ???????????????# ?????# #????????# # # | | ???????????????# ?????# #????????# # %[##? | | ???????????????# ?????# #????##### ### !%#? | | ?????????????### ????## #???## # ## #? | | ????????????## ##??# ##?## ### # #? | | ????????????# #### ### # # ##? | | ????????????# # # #? | | ????????????# ###### ## | | ????????????#### ##### ##????# # | | ???????????????##### #???## ##?????# # | | ???????????????????## ########## ##??????# ## | | ????????????????????# !%@ #???## #??????## ## | | ????????????? #???########### ## | | ????????? h #???????# | | ?????????? #???????# | | ?????????? ## ??????# ##### | | ??????????? ##### ????#??????## | | ?????????? #????# #???????????## | | ??????????? #?????# ???????????##^ | | ??????????? ??????## ## ???????????## | | ???????????? #????????## ##?####???????????# | | ????????????#### ##???????????##?????????????????# | | ???????????????##????????????????????????????????? | | ?????????????????????????????????????????????????? | | ?????????????????????????????????????????????????? | | ?????????????????????????????????????????????????? | | ?????????????????????????????????????????????????? | | ?????????????????????????????????????????????????? | | ?????????????????????????????????????????????????? | | ?????????????????????????????????????????????????? | | ?????????????????????????????????????????????????? | | ?????????????????????????????????????????????????? | | ?????????????????????????????????????????????????? | | ?????????????????????????????????????????????????? | | ?????????????????????????????????????????????????? | | ?????????????????????????????????????????????????? | +----------------------------------------------------+ Best States ------------- Heat Dissipation 68 Energy Generation 31 Energy Capacity 700 Matter Stores 300 Matter Capacity 300 Sight Range 16 Terrain Scan Density 10 ECM Strength 1 Cloak Strength 2 Armor Coverage 600 Resistance: KI 25 Core Shielding 20 Evasion (%) 49 Target Analysis 5 Recoil Reduction 4 Kinecelleration 30 Offensive Hacking 10 Defensive Hacking 11 Item Schematics ----------------- Adv. Treads | -7/Factory | Scanalyzed Combat Drone Bay | -7/Data Miner | Free Lgt. Regenerative Plating | -7/Data Miner | Free Biomechanical Wings | -7/Data Miner | Free Exp. Targeting Computer | -7/Data Miner | Free Ion Burst Cannon | -7/Data Miner | Free Antigrav System | -7/Data Miner | Free Imp. Focal Shield | -7/Data Miner | Free Imp. Plasma Cutter | -7/Data Miner | Free Thermal Shield | -7/Data Miner | Free Neutrino Core | -7/Data Miner | Free Hardcell Cannon | -7/Data Miner | Free Robot Schematics ------------------ R-10 Processor | -7/Data Miner | Free A-15 Conveyor | -7/Data Miner | Free B-48 Gladiator | -7/Data Miner | Free G-50 Soldier | -7/Data Miner | Free L-41 Fighter | -7/Data Miner | Free Fabricated ------------ Nothing Alien Tech Used ----------------- None Achievements -------------- None Challenges ------------ None Game ------ Seed FrostBottomlessInterrupter Manual? 0 Play Time 01:28:05 Cumulative 105.7 hours Start 2024.09.18 @ 02:11:53 End 2024.09.18 @ 03:40:34 Sessions 1 Manual Loads 0 Difficulty Rogue Special Mode None Game No. 141 Rogue 141 Adventurer 0 Explorer 0 Win Type - Total 1 Types 1/0/0/0/0/0/0/0/0 Lore% 21 Gallery% 56 Achievement% 44 Wizard Run 0 Options --------- Layout 0 ASCII 0 Keyboard 0 Movement Mouse Keybinds 1 Fullscreen 1 Font 18/TerminusBold Map View 76x50 Zoom Use 0% Tactical HUD 1 Map Filters NONE Filters NONE Steam 1 RUN: 24a876dd-7eec-43a7-bd28-69e3dc73c726